bitfinex-derivatives/quotes_SOLF0:USTF0_20260217
["timestamp","ask_amount","ask_price","bid_price","bid_amount"]
[1771318959764,2.75200651,86.02,85.986,10.4725]
[1771318961858,2.75200651,86.02,85.987,3.88494276]
[1771318962462,2.75200651,86.02,85.989,3.88494276]
[1771318965663,10.4676,86.027,85.989,3.88494276]
[1771318966577,10.4662,86.038,85.997,3.88063535]
[1771318967170,2.75200651,86.03,85.997,3.88063535]
[1771318969372,2.75200651,86.03,85.998,10.471]
[1771318971275,2.75200651,86.03,85.999,3.89403756]
[1771318987297,2.75200651,86.03,86.0,10.4708]
[1771318988797,2.75200651,86.03,86.001,3.96926712]
[1771318988987,10.4649,86.049,86.006,3.96926712]
[1771318989193,8.54504557,86.048,86.006,3.96926712]
[1771318989389,10.4649,86.049,86.006,3.96926712]
[1771318989585,8.54513896,86.048,86.006,3.96926712]
[1771318989788,10.4649,86.049,86.006,3.96926712]
[1771318990089,8.54517151,86.048,86.006,3.96926712]
[1771318990294,10.4639,86.058,86.015,3.96909904]
[1771318990483,2.75200651,86.07,86.015,3.96909904]
[1771318990893,2.75200651,86.07,86.029,3.96909904]
[1771318991892,2.75200651,86.07,86.031,3.973541]
[1771318992293,2.75200651,86.08,86.031,3.973541]
[1771318992997,2.75200651,86.08,86.034,3.973541]
[1771318993698,2.75200651,86.08,86.039,3.97670317]
[1771318993899,2.75200651,86.07,86.039,3.97670317]
[1771318994499,10.4618,86.075,86.039,3.97670317]
[1771318994696,2.75200651,86.08,86.039,3.97670317]
[1771318995996,2.750109,86.08,86.039,3.97670317]
[1771318997700,10.4613,86.079,86.039,3.97670317]
[1771319000796,10.4603,86.087,86.039,3.97670317]
[1771319001011,2.750109,86.08,86.039,3.97670317]
[1771319001704,10.4603,86.087,86.04,10.4659]
[1771319001905,10.4603,86.087,86.041,3.95516765]
[1771319002707,10.4603,86.087,86.044,3.95516765]
[1771319003702,10.4603,86.087,86.046,3.94779107]
[1771319004404,10.4603,86.087,86.002,21.7101904]
[1771319004405,2.750109,86.07,86.037,3.94779107]
[1771319004804,2.750109,86.06,86.025,3.94779107]
[1771319005695,2.750109,86.06,86.03,3.93493391]
[1771319006109,0.03178826,86.069,86.03,3.93493391]
[1771319006806,0.03178826,86.069,86.032,3.93493391]
[1771319007603,0.03178826,86.069,86.036,10.4664]
[1771319007810,8.51461538,86.097,85.998,93.46]
[1771319007811,2.750109,86.08,86.037,3.93493391]
[1771319008108,0.06088873,86.079,86.037,3.93493391]
[1771319008306,2.750109,86.07,86.037,3.93493391]
[1771319009409,0.06088873,86.079,86.037,3.93493391]
[1771319009711,0.06088873,86.079,86.038,10.4661]
[1771319009909,0.06088873,86.079,86.039,3.93927639]
[1771319011405,0.04881762,86.076,86.039,3.93927639]
[1771319011714,2.750109,86.05,86.016,3.93891938]
[1771319012003,2.750109,86.03,85.971,3.93891938]
[1771319012610,2.750109,86.03,85.989,3.93891938]
[1771319013910,2.750109,86.03,85.998,3.88277222]
[1771319014804,2.750109,86.03,86.005,10.4702]
[1771319015608,2.750109,86.04,86.005,10.4702]
[1771319016206,2.750109,86.04,86.007,10.4699]
[1771319017014,2.750109,86.04,86.008,3.8757137]
[1771319018913,2.750109,86.04,86.012,3.8716696]
[1771319019116,2.750109,86.05,86.012,3.8716696]
[1771319019616,2.750109,86.04,86.013,14.3408696]
[1771319019816,2.750109,86.05,86.014,3.88149489]
[1771319020713,2.750109,86.05,86.015,14.35049489]
[1771319021215,2.750109,86.05,86.016,3.88149489]
[1771319022013,2.750109,86.05,86.018,3.88262802]
[1771319030107,2.750109,86.06,86.018,3.88262802]
[1771319030409,2.750109,86.07,86.018,3.88262802]
[1771319030816,2.750109,86.07,86.038,3.91077266]
[1771319031022,10.4613,86.079,86.038,3.91077266]
[1771319031514,2.750109,86.07,86.038,3.91077266]
[1771319032426,0.10747947,86.079,86.038,3.91077266]
[1771319033815,0.10747947,86.079,86.04,3.8469616]
[1771319034320,2.750109,86.08,86.044,3.8469616]
[1771319034517,10.46,86.089,86.044,3.8469616]
[1771319036422,2.750109,86.08,86.044,3.8469616]
[1771319040225,2.750109,86.09,86.046,3.8469616]
[1771319040424,2.750109,86.1,86.051,3.8469616]
[1771319041020,0.27328732,86.106,86.051,3.8469616]
[1771319041422,0.27328732,86.106,86.05,2.750109]
[1771319041423,0.27328732,86.106,86.073,3.8469616]
[1771319041622,10.4566,86.118,86.073,3.8469616]
[1771319041623,2.750109,86.11,86.073,3.8469616]
[1771319042127,2.750109,86.11,86.075,3.8469616]
[1771319042834,10.4553,86.128,86.084,3.8469616]
[1771319043029,2.750109,86.13,86.084,3.8469616]
[1771319043417,2.750109,86.13,86.089,3.8469616]
[1771319043626,2.750109,86.14,86.089,3.8469616]
[1771319043832,0.25568955,86.144,86.09,2.750109]
[1771319044018,0.25568955,86.144,86.091,3.88678474]
[1771319044829,2.750109,86.15,86.106,3.88678474]
[1771319045328,2.90556431,86.15,86.106,3.88678474]
[1771319045537,0.15545531,86.129,86.082,3.88678474]
[1771319045723,0.16005617,86.109,86.061,3.88678474]
[1771319046933,0.16005617,86.109,86.069,3.88448431]
[1771319047836,0.16005617,86.109,86.071,3.89145885]
[1771319050129,2.750109,86.11,86.074,3.89172863]
[1771319050636,0.14556754,86.118,86.074,3.89172863]
[1771319052539,2.750109,86.11,86.074,3.89172863]
[1771319053239,2.750109,86.11,86.076,3.89099913]
[1771319056337,2.750109,86.12,86.082,3.88305226]
[1771319057743,2.750109,86.12,86.084,3.88193897]
[1771319058046,0.15932525,86.129,86.084,3.88193897]
[1771319058243,2.74694563,86.12,86.084,3.88193897]
[1771319059841,2.90740377,86.12,86.084,3.88193897]
[1771319060041,2.74694563,86.11,86.084,3.88193897]
[1771319060246,2.90740377,86.12,86.084,3.88193897]
[1771319061242,2.90740377,86.12,86.06,2.74694563]
[1771319061243,2.90740377,86.12,86.086,3.88137252]
[1771319061438,2.74694563,86.12,86.086,3.88137252]
[1771319063644,0.14313284,86.119,86.086,3.88137252]
[1771319063842,0.14313284,86.119,86.085,10.4605]
[1771319066145,0.14313284,86.119,86.078,3.93077678]
[1771319067041,2.74694563,86.11,86.078,3.93077678]
[1771319070945,2.7700406,86.12,86.078,3.93077678]
[1771319071152,2.7700406,86.12,86.047,73.16]
[1771319071153,13.20204563,86.13,86.092,3.95005411]
[1771319071348,2.74694563,86.13,86.092,3.95005411]
[1771319071753,13.20204563,86.13,86.092,3.95005411]
[1771319073045,0.02309497,86.142,86.093,3.95539294]
[1771319073454,2.74694563,86.12,86.079,10.4612]
[1771319073754,0.16190673,86.119,86.08,3.95539294]
[1771319074553,0.16190673,86.119,86.083,3.88064823]
[1771319075344,2.74694563,86.14,86.095,3.88064823]
[1771319076655,0.16190673,86.15,86.103,10.4583]
[1771319076848,2.74694563,86.14,86.104,3.87737488]
[1771319077350,2.74694563,86.14,86.053,21.7101904]
[1771319077351,0.16845342,86.129,86.093,3.87737488]
[1771319081463,0.16845342,86.129,86.094,14.34423493]
[1771319081654,0.16845342,86.129,86.095,3.88493493]
[1771319081957,2.74694563,86.13,86.095,3.88493493]
[1771319082661,10.4544,86.136,86.095,3.88493493]
[1771319082861,2.8768739,86.14,86.098,3.89663746]
[1771319083160,2.8768739,86.15,86.098,3.89663746]
[1771319083362,8.56456068,86.149,86.098,3.89663746]
[1771319083557,2.8768739,86.15,86.098,3.89663746]
[1771319083754,8.5639089,86.149,86.098,3.89663746]
[1771319083955,10.4528,86.149,86.107,3.89224019]
[1771319084161,8.56865903,86.148,86.107,3.89224019]
[1771319084460,8.56865903,86.147,86.107,3.89224019]
[1771319084758,10.59260264,86.149,86.107,3.89224019]
[1771319084962,2.74694563,86.14,86.107,3.89224019]
[1771319085164,2.74694563,86.14,86.08,2.74694563]
[1771319085165,2.74694563,86.14,86.109,3.89209712]
[1771319085354,0.13980264,86.149,86.109,3.89209712]
[1771319085659,8.56740295,86.148,86.109,3.89209712]
[1771319085964,8.56740295,86.147,86.109,3.89209712]
[1771319086156,0.13980264,86.149,86.109,3.89209712]
[1771319086363,8.56900509,86.148,86.109,3.89209712]
[1771319086560,0.13980264,86.149,86.109,3.89209712]
[1771319086561,8.57071168,86.147,86.109,3.89209712]
[1771319086761,0.13980264,86.149,86.109,3.89209712]
[1771319086961,8.57071168,86.148,86.109,3.89209712]
[1771319087163,8.57071168,86.147,86.109,3.89209712]
[1771319087360,0.13980264,86.149,86.109,3.89209712]
[1771319087560,8.57116067,86.148,86.109,3.89209712]
[1771319087761,2.74694563,86.14,86.109,3.89209712]
[1771319090563,0.26683055,86.146,86.109,3.89209712]
[1771319094465,2.74694563,86.14,86.109,3.89209712]
[1771319096670,2.74694563,86.15,86.109,3.89209712]
[1771319099066,0.24370059,86.159,86.109,3.89209712]
[1771319100371,2.97901398,86.17,86.127,3.84921339]
[1771319100563,0.23206835,86.169,86.127,3.84921339]
[1771319101158,0.23206835,86.169,86.11,2.74694563]
[1771319101159,2.74694563,86.16,86.128,3.84921339]
[1771319102266,2.74694563,86.16,86.072,46.51]
[1771319102267,2.74694563,86.14,86.103,3.84930734]
[1771319103372,2.74694563,86.14,86.107,3.84930734]
[1771319104277,0.23188045,86.149,86.107,3.84930734]
[1771319104670,2.74694563,86.14,86.112,3.88023664]
[1771319104971,34.88,86.193,86.081,3.88023664]
[1771319104972,2.74694563,86.12,86.081,3.88023664]
[1771319105162,2.74694563,86.11,86.081,3.88023664]
[1771319105562,2.74694563,86.11,86.069,3.88023664]
[1771319105772,2.74694563,86.1,86.069,3.88023664]
[1771319107269,2.74694563,86.11,86.071,3.87504294]
[1771319110468,2.74694563,86.11,86.075,3.88090057]
[1771319113270,0.16447214,86.149,86.093,3.88301149]
[1771319113575,2.74694563,86.14,86.093,3.88301149]
[1771319113975,10.454,86.139,86.096,10.4591]
[1771319114178,10.454,86.139,86.097,3.88318009]
[1771319114768,2.74694563,86.12,86.085,10.4604]
[1771319114969,2.74694563,86.11,86.084,3.91218406]
[1771319115878,2.74694563,86.11,86.07,3.91218406]
[1771319116177,2.74694563,86.1,86.07,3.91218406]
[1771319117375,2.74694563,86.1,86.071,10.4621]
[1771319117978,0.24548858,86.108,86.071,10.4621]
[1771319118372,0.24548858,86.108,86.072,3.91218406]
[1771319118580,2.74825383,86.11,86.072,3.91218406]
[1771319119784,13.20585383,86.11,86.072,3.91218406]
[1771319119976,2.74825383,86.1,86.072,3.91218406]
[1771319120976,13.20585383,86.11,86.072,3.91218406]
[1771319121982,2.74825383,86.1,86.072,3.91218406]
[1771319122582,0.27745405,86.099,86.06,3.91218406]
[1771319123688,0.27745405,86.099,86.062,3.91218406]
[1771319124487,2.74825383,86.1,86.062,3.91218406]
[1771319124688,2.74825383,86.11,86.068,3.91218406]
[1771319126697,10.4576,86.109,86.07,3.91218406]
[1771319129294,2.74825383,86.11,86.073,3.91218406]
[1771319133496,2.74825383,86.11,86.076,3.91218406]
[1771319133899,0.39336118,86.106,86.065,3.91218406]
[1771319134099,2.74825383,86.1,86.038,3.91218406]
[1771319134306,2.74825383,86.1,86.041,3.91218406]
[1771319134905,2.74825383,86.1,86.066,10.4627]
[1771319135206,2.74825383,86.1,86.067,3.91218406]
[1771319136703,2.74825383,86.1,86.069,3.91218406]
[1771319137401,2.74825383,86.1,86.07,10.4623]
[1771319137706,2.74825383,86.11,86.071,3.91218406]
[1771319138799,2.74825383,86.11,86.073,3.91218406]
[1771319139204,2.74825383,86.11,86.075,3.91218406]
[1771319139405,3.10479182,86.11,86.075,3.91218406]
[1771319139608,0.35653799,86.109,86.075,3.91218406]
[1771319140209,2.74825383,86.1,86.06,3.91218406]
[1771319141005,2.74825383,86.1,86.065,3.91218406]
[1771319141296,0.35653799,86.109,86.065,3.91218406]
[1771319142008,2.74825383,86.1,86.072,10.462]
[1771319143902,10.4575,86.11,86.065,14.37508406]
[1771319143903,0.35567983,86.107,86.065,14.37508406]
[1771319144101,2.74825383,86.1,86.065,14.37508406]
[1771319144904,2.74825383,86.1,86.067,10.4626]
[1771319146308,2.74825383,86.1,86.071,3.79059732]
[1771319146912,0.35567983,86.107,86.071,3.79059732]
[1771319147314,0.35567983,86.107,86.072,10.462]
[1771319147510,0.35567983,86.107,86.072,14.25259732]
[1771319148912,0.35567983,86.107,86.073,3.8004336]
[1771319149608,2.74825383,86.11,86.073,3.8004336]
[1771319151214,2.74825383,86.11,86.076,3.83234929]
[1771319151518,0.33227051,86.119,86.076,3.83234929]
[1771319151716,2.74825383,86.12,86.076,3.83234929]
[1771319152017,3.05139048,86.13,86.09,3.83234929]
[1771319153617,2.74825383,86.13,86.093,3.83234929]
[1771319153819,2.74825383,86.14,86.093,3.83234929]
[1771319154817,2.74825383,86.14,86.098,3.83234929]
[1771319155422,2.74825383,86.14,86.101,3.83234929]
[1771319155917,0.16278526,86.138,86.087,3.88210543]
[1771319156116,2.74825383,86.14,85.996,162.8863]
[1771319156117,0.16278526,86.119,86.071,3.88210543]
[1771319157819,0.16278526,86.119,86.085,10.4604]
[1771319159110,0.16278526,86.119,86.05,2.74825383]
[1771319159111,2.74825383,86.11,86.076,10.4615]
[1771319160818,2.74825383,86.11,86.076,14.39816528]
[1771319161018,2.74825383,86.11,86.079,10.4611]
[1771319161417,2.74825383,86.11,86.077,3.93666528]
[1771319162510,2.74825383,86.1,86.071,10.4621]
[1771319164317,13.20455383,86.12,86.074,3.94860125]
[1771319165726,13.20455383,86.12,86.078,3.94860125]
[1771319166419,2.74825383,86.12,86.082,3.97480014]
[1771319166619,2.74825383,86.13,86.082,3.97480014]
[1771319167618,2.74825383,86.12,86.082,3.97480014]
[1771319168219,2.74825383,86.12,86.089,10.4599]
[1771319169722,2.74825383,86.1,86.069,3.96583616]
[1771319174931,2.74825383,86.1,86.071,10.4622]
[1771319175333,2.74825383,86.1,86.072,3.98088957]
[1771319176031,2.74825383,86.11,86.072,3.98088957]
[1771319176328,2.74825383,86.11,86.074,3.98012476]
[1771319179232,10.75584145,86.139,86.039,21.7101904]
[1771319179233,2.74825383,86.1,86.057,3.98202859]
[1771319179435,2.74825383,86.09,86.057,3.98202859]
[1771319179946,2.7485295,86.11,86.068,3.98535495]
[1771319180647,2.7485295,86.11,86.07,10.4623]
[1771319180839,2.7485295,86.11,86.071,3.98535495]
[1771319181948,2.7485295,86.12,86.073,3.99892949]
[1771319182138,8.559234,86.119,86.073,3.99892949]
[1771319182344,8.559234,86.118,86.073,3.99892949]
[1771319182541,8.559234,86.117,86.073,3.99892949]
[1771319182745,8.559234,86.116,86.073,3.99892949]
[1771319182951,2.7485295,86.12,86.073,3.99892949]
[1771319183136,8.59311412,86.119,86.073,3.99892949]
[1771319183447,8.59311412,86.118,86.073,3.99892949]
[1771319183648,8.59311412,86.117,86.078,10.4612]
[1771319183851,8.59311412,86.116,86.079,3.99892949]
[1771319184043,2.7485295,86.12,86.079,3.99892949]
[1771319184244,8.59308786,86.119,86.079,3.99892949]
[1771319184448,2.7485295,86.12,86.079,3.99892949]
[1771319185743,2.7485295,86.12,86.082,4.00621393]
[1771319187751,2.7485295,86.12,86.087,14.46598696]
[1771319187941,2.7485295,86.12,86.088,4.00967009]
[1771319188141,13.2024295,86.14,86.088,4.00967009]
[1771319189248,13.2024295,86.14,86.102,4.00967009]
[1771319191352,2.7485295,86.13,86.102,4.00967009]
[1771319195755,2.7485295,86.14,86.102,4.00967009]
[1771319196151,2.7485295,86.15,86.111,4.01763155]
[1771319197558,2.7485295,86.15,86.113,4.01763155]
[1771319197757,14.35205508,86.189,86.113,4.01763155]
[1771319197758,2.7485295,86.16,86.113,4.01763155]
[1771319198152,2.7485295,86.16,86.121,14.46512317]
[1771319198357,2.7485295,86.16,86.122,4.00902317]
[1771319199057,10.4516,86.159,86.122,4.00902317]
[1771319199955,2.7485295,86.15,86.122,4.00902317]
[1771319200661,2.7485295,86.15,86.126,10.4555]
[1771319201764,2.7485295,86.16,86.126,10.4555]
[1771319203356,2.7485295,86.16,86.129,4.01175616]
[1771319203654,2.7485295,86.17,86.129,4.01175616]
[1771319203859,2.7485295,86.16,86.129,4.01175616]
[1771319206170,2.7485295,86.15,86.117,4.00563915]
[1771319214264,10.75584145,86.195,86.106,3.98836401]
[1771319214265,2.7485295,86.14,86.106,3.98836401]
[1771319214864,2.7485295,86.14,86.113,10.4571]
[1771319215168,2.7485295,86.14,86.114,3.98836401]
[1771319217166,10.4527,86.149,86.114,3.98836401]
[1771319218668,10.4517,86.158,86.117,3.98554871]
[1771319218868,2.7485295,86.15,86.117,3.98554871]
[1771319219874,2.7485295,86.15,86.12,3.9858469]
[1771319220269,10.4516,86.158,86.12,3.9858469]
[1771319225077,2.7485295,86.15,86.111,10.4573]
[1771319225378,2.7485295,86.13,86.095,3.99510782]
[1771319226781,2.7485295,86.13,86.095,14.45430782]
[1771319227777,2.7485295,86.13,86.096,3.99427753]
[1771319236089,2.7485295,86.13,86.064,21.7101904]
[1771319236090,2.7485295,86.11,86.077,3.98962703]
[1771319237678,2.7485295,86.11,86.079,3.98962703]
[1771319238690,2.7485295,86.12,86.084,3.99255018]
[1771319238992,10.4551,86.13,86.084,3.99255018]
[1771319239190,2.7485295,86.12,86.084,3.99255018]
[1771319239387,73.14,86.138,86.096,3.99255018]
[1771319239594,2.7485295,86.13,86.096,3.99255018]
[1771319239792,13.2024295,86.14,86.096,3.99255018]
[1771319240895,13.2024295,86.14,86.099,4.01344483]
[1771319241994,2.74615637,86.14,86.099,4.01344483]
[1771319242189,2.74615637,86.12,86.087,3.99135384]
[1771319242890,2.74615637,86.12,86.088,10.4601]
[1771319243194,2.74615637,86.13,86.089,3.99135384]
[1771319243602,2.74615637,86.12,86.089,3.99135384]
[1771319244408,2.74615637,86.11,86.052,4.03217466]
[1771319244606,2.74615637,86.11,86.05,2.74615637]
[1771319244607,2.74615637,86.11,86.054,4.03217466]
[1771319245305,2.74615637,86.1,86.065,4.03217466]
[1771319246010,2.74615637,86.1,86.067,4.02267695]
[1771319247012,10.4576,86.109,86.067,4.02267695]
[1771319247813,10.4576,86.109,86.068,10.4625]
[1771319248112,2.74615637,86.1,86.068,10.4625]
[1771319248711,2.74615637,86.09,86.053,4.03382767]
[1771319248905,2.74615637,86.08,86.031,4.03382767]
[1771319249814,2.74615637,86.08,86.044,10.4655]
[1771319250317,2.74615637,86.07,86.031,4.03382767]
[1771319251714,2.74615637,86.07,86.031,14.50082767]
[1771319252120,2.74615637,86.07,86.032,4.05850309]
[1771319254619,2.74615637,86.06,86.032,4.05850309]
[1771319255112,2.74615637,86.06,86.021,10.4682]
[1771319255313,2.74615637,86.06,86.021,14.52204655]
[1771319255710,2.74615637,86.06,86.022,4.05384655]
[1771319256114,73.18,86.097,86.026,4.09724241]
[1771319256115,2.74615637,86.08,86.026,4.09724241]
[1771319256421,2.74615637,86.07,86.026,4.09724241]
[1771319257216,2.74615637,86.07,86.01,2.74615637]
[1771319257217,2.74615637,86.07,86.033,4.09724241]
[1771319258122,2.74615637,86.07,86.036,4.09744892]
[1771319258621,2.74615637,86.07,86.035,10.4665]
[1771319258920,2.74615637,86.06,86.024,4.09744892]
[1771319261309,2.74615637,86.06,86.025,4.09126027]
[1771319266427,2.74615637,86.06,86.027,10.4674]
[1771319267731,2.74615637,86.07,86.032,4.0638811]
[1771319268730,2.74615637,86.08,86.034,4.13286455]
[1771319269530,2.74615637,86.06,86.034,4.13286455]
[1771319269733,2.74615637,86.06,86.001,4.13286455]
[1771319269931,2.74615637,86.06,86.023,10.468]
[1771319270228,2.74615637,86.05,86.023,10.468]
[1771319271125,2.74615637,86.06,86.023,10.468]
[1771319273929,2.74615637,86.06,86.027,4.14736878]
[1771319274728,2.74615637,86.06,86.03,10.4671]
[1771319276533,2.74615637,86.06,86.031,4.14811266]
[1771319293637,10.4638,86.058,86.02,4.35074306]
[1771319293835,10.4638,86.058,85.923,562.02240562]
[1771319293836,2.74615637,86.04,86.01,4.35074306]
[1771319296639,2.74615637,86.04,85.97,20.9489]
[1771319296640,2.74615637,86.03,85.998,4.42438456]
[1771319296833,2.74615637,86.05,85.998,4.42438456]
[1771319297033,2.74615637,86.05,86.018,4.42438456]
[1771319298640,2.74615637,86.05,86.02,10.4683]
[1771319298945,2.74615637,86.05,86.021,4.42999999]
[1771319301739,10.4636,86.06,85.98,2.02285007]
[1771319301740,2.74615637,86.06,86.001,4.42056548]
[1771319302444,2.74615637,86.06,86.023,10.468]
[1771319302646,2.74615637,86.06,86.024,4.53240486]
[1771319303849,2.75164086,86.06,86.024,4.53240486]
[1771319304848,2.75164086,86.06,86.027,10.4675]
[1771319308047,2.75164086,86.06,86.028,4.56437493]
[1771319308250,2.75164086,86.06,86.03,4.56437493]
[1771319310447,2.75164086,86.07,86.03,4.56437493]
[1771319311648,2.75164086,86.07,86.031,10.467]
[1771319311852,2.75164086,86.07,86.032,4.59408977]
[1771319312357,8.63281254,86.069,86.032,4.59408977]
[1771319312656,2.75164086,86.07,86.032,4.59408977]
[1771319312855,8.63281364,86.069,86.032,4.59408977]
[1771319313047,2.75164086,86.07,86.032,4.59408977]
[1771319313349,8.63280392,86.069,86.032,4.59408977]
[1771319313549,75.95164086,86.08,86.037,4.60119836]
[1771319313750,8.63322075,86.079,86.037,4.60119836]
[1771319313953,8.63322075,86.078,86.037,4.60119836]
[1771319314153,13.21154086,86.09,86.047,4.61505575]
[1771319314447,8.63245205,86.089,86.047,4.61505575]
[1771319314650,2.75164086,86.08,86.047,4.61505575]
[1771319319561,2.75164086,86.08,86.049,4.61810888]
[1771319323062,2.75164086,86.09,86.051,4.63522179]
[1771319324162,2.75164086,86.08,86.04,4.63498446]
[1771319324359,176.16904803,86.107,86.04,4.63498446]
[1771319324360,2.75164086,86.07,86.04,4.63498446]
[1771319324560,2.75164086,86.06,86.04,4.63498446]
[1771319329669,2.75164086,86.06,86.032,10.4668]
[1771319330370,2.75164086,86.06,86.032,15.11742011]
[1771319330572,2.75164086,86.06,86.036,10.4664]
[1771319331869,10.4613,86.079,86.04,3.76367545]
[1771319332061,2.75164086,86.08,86.04,3.76367545]
[1771319332566,2.75164086,86.08,86.042,3.76367545]
[1771319332965,2.75164086,86.09,86.042,3.76367545]
[1771319333160,1.40241938,86.089,86.042,3.76367545]
[1771319333668,10.4612,86.08,86.042,3.76367545]
[1771319336968,11.71751741,86.08,86.042,3.76367545]
[1771319338970,1.24505161,86.077,86.042,3.76367545]
[1771319339271,1.24505161,86.069,86.034,10.4666]
[1771319340674,1.24505161,86.069,86.037,10.4662]
[1771319341075,1.24505161,86.069,86.037,14.22987545]
[1771319341273,11.70745161,86.069,86.037,3.76367545]
[1771319341463,1.24505161,86.069,86.037,3.76367545]
[1771319341869,1.24505161,86.069,86.038,10.4661]
[1771319343168,10.4617,86.076,86.039,3.76367545]
[1771319344574,1.29400245,86.075,86.039,3.76367545]
[1771319344872,1.29400245,86.069,86.038,10.4661]
[1771319345879,10.4617,86.076,86.039,3.76367545]
[1771319347769,1.28099844,86.075,86.031,10.467]
[1771319348075,2.75164086,86.05,86.009,3.76367545]
[1771319349674,2.75164086,86.05,86.015,10.4689]
[1771319350970,2.75164086,86.05,86.009,3.76367545]
[1771319350971,2.75164086,86.05,86.019,14.23217545]
[1771319351176,13.21394086,86.07,86.02,3.76367545]
[1771319352784,13.21394086,86.07,86.027,3.76367545]
[1771319354478,10.4626,86.068,86.027,3.76367545]
[1771319355777,11.75854624,86.068,86.027,3.76367545]
[1771319355983,2.75164086,86.05,86.016,14.09681324]
[1771319356186,1.29594624,86.049,86.016,14.09681324]
[1771319359772,1.29594624,86.049,86.017,3.62801324]
[1771319359976,10.4637,86.059,86.02,3.62801324]
[1771319360285,3.89270767,86.06,86.02,3.62801324]
[1771319360681,2.75164086,86.06,86.02,3.62801324]
[1771319360985,2.75164086,86.06,86.023,3.62801324]
[1771319361690,2.75164086,86.06,86.027,3.62801324]
[1771319362082,1.15150211,86.059,86.015,3.62801324]
[1771319362390,2.75164086,86.04,86.015,3.62801324]
[1771319362591,2.75164086,86.04,86.016,10.4688]
[1771319363481,3.90314297,86.05,86.016,10.4688]
[1771319365885,3.90368494,86.05,86.016,10.4688]
[1771319367791,3.90368494,86.05,86.016,14.09681324]
[1771319369484,2.75218283,86.04,86.016,3.62801324]
[1771319371103,2.75218283,86.04,85.986,3.62801324]
[1771319372304,2.75218283,86.04,86.005,14.09811324]
[1771319374100,4.14174888,86.04,86.005,14.09811324]
[1771319375705,2.75218283,86.04,86.011,3.62801324]
[1771319376205,2.75218283,86.04,86.016,10.4689]
[1771319377005,8.283e-05,86.04,86.017,3.62801324]
[1771319377204,2.75218283,86.05,86.017,3.62801324]
[1771319378405,73.2,86.054,86.017,3.62801324]
[1771319378703,2.75218283,86.05,86.017,3.62801324]
[1771319379408,2.75218283,86.04,86.008,10.4698]
[1771319379598,2.75218283,86.04,86.008,14.09781324]
[1771319380199,2.75218283,86.04,85.981,80.72]
[1771319380200,2.75218283,86.04,86.012,10.4693]
[1771319380504,2.75218283,86.04,86.013,3.62801324]
[1771319380700,2.75218283,86.05,86.013,3.62801324]
[1771319381099,2.75218283,86.05,86.014,14.09701324]
[1771319381307,2.75218283,86.04,86.014,14.09701324]
[1771319381611,2.75218283,86.04,86.014,3.62801324]
[1771319384613,1.37401346,86.049,86.014,3.62801324]
[1771319385411,2.75218283,86.04,86.014,3.62801324]
[1771319387109,2.75218283,86.04,86.001,14.14622824]
[1771319387110,10.4661,86.039,86.001,14.14622824]
[1771319387310,10.4661,86.039,86.002,3.67562824]
[1771319389012,10.4661,86.039,85.99,21.75379797]
[1771319389013,1.34417608,86.029,85.991,10.4718]
[1771319389208,2.75218283,86.02,85.98,3.67562824]
[1771319389412,1.34417608,86.029,85.98,3.67562824]
[1771319389910,2.75218283,86.03,85.991,3.67562824]
[1771319390112,83.6667,86.034,85.991,3.67562824]
[1771319390705,83.6667,86.034,85.997,3.79296884]
[1771319391614,10.4667,86.034,85.997,3.79296884]
[1771319394417,2.75218283,86.03,85.997,3.79296884]
[1771319396712,2.75218283,86.03,85.971,80.26]
[1771319396914,1.25507587,86.019,85.972,3.79296884]
[1771319397314,73.2,86.036,85.984,3.79296884]
[1771319397315,2.75218283,86.02,85.984,3.79296884]
[1771319399116,1.23371895,86.019,85.984,3.79296884]
[1771319399419,2.75218283,86.01,85.978,10.4734]
[1771319399809,2.75218283,86.0,85.973,3.79296884]
[1771319400118,4.01972023,86.0,85.962,3.79296884]
[1771319400415,1.2675374,85.997,85.95,3.79296884]
[1771319400606,1.2675374,85.997,85.881,35.64396088]
[1771319400607,1.2675374,85.959,85.887,3.79296884]
[1771319400807,2.75218283,85.92,85.887,3.79296884]
[1771319401016,2.75218283,85.91,85.887,3.79296884]
[1771319401513,2.75218283,85.9,85.871,3.79296884]
[1771319401712,1.2675374,85.925,85.871,3.79296884]
[1771319401713,2.75218283,85.92,85.871,3.79296884]
[1771319402025,2.75218283,85.94,85.881,3.79296884]
[1771319402317,2.75218283,85.94,85.884,3.79296884]
[1771319402622,2.75218283,85.93,85.884,3.79296884]
[1771319403017,2.75218283,85.92,85.884,3.79296884]
[1771319403316,10.74849902,85.98,85.884,3.79296884]
[1771319403317,2.75218283,85.91,85.884,3.79296884]
[1771319403625,2.75218283,85.91,85.855,2.0258706]
[1771319403626,2.75218283,85.9,85.858,3.79296884]
[1771319404823,2.75218283,85.9,85.86,3.79296884]
[1771319405218,2.75218283,85.91,85.86,3.79296884]
[1771319405409,2.75218283,85.92,85.871,3.79296884]